Cogmind - Beta 9.6 @@@ ROGUE MODE // 2020.04.28 @ 11:52:44 // Winter2019/RPGLIKE Player: PhenomPhear Result: Destroyed by L-61 Swordsman with Power Sword Performance ------------- Evolutions (6) 3000 Regions Visited (21) 4200 Robots Destroyed (353) 1765 Value Destroyed (12538) 12538 Prototype IDs (39) 780 Alien Tech Used (0) 0 Bonus (5131) 5131 TOTAL SCORE: 27414 Bonus ------- Triggered High Security 500 High Alert Combat Kills 4154 Follower Combat Kills 2151 Aligned with FarCom 300 Met Data Miner 300 Met Imprinter 300 Built Enhanced Grunts 300 Met R17 at Cetus 500 Friendly Fire -3374 Cogmind --------- Core Integrity 0/1650 Matter 136/400 Energy 695/700 System Corruption 13% Temperature Cool (0) Movement Treading (160) Location -4/Factory Parts ------- > --- POWER (2) -------- Quantum Reactor > --- PROPULSION (4) --- Centrium Heavy Treads Centrium Heavy Treads > --- UTILITY (8) ------ Advanced Sensor Array Advanced Signal Interpreter Experimental Targeting Computer Improved Armor Integrity Analyzer Improved Kinecellerator > --- WEAPON (3) ------- KE Penetrator Improved KE Penetrator > --- INVENTORY (4) ---- Protomatter-51 Improved Energy Well Long-range Proton Cannon Long-range Missile Launcher Peak State ------------ > --- POWER ------------ Quantum Reactor Quantum Reactor > --- PROPULSION ------- Centrium Heavy Treads Centrium Heavy Treads > --- UTILITY ---------- Gravity Neutralizing Apparatus Advanced Signal Interpreter Experimental Targeting Computer Improved Armor Integrity Analyzer Improved Kinecellerator Improved Weapon Cycler Centrium Medium Armor Plating Centrium Medium Armor Plating > --- WEAPON ----------- Long-range Proton Cannon Improved KE Penetrator Improved KE Penetrator > --- INVENTORY -------- Protomatter Improved Energy Well Long-range Proton Cannon Long-range Missile Launcher [Rating: 127] Favorites ----------- Power Cooled Deuterium Engine Engine Cooled Deuterium Engine Power Core Micro Fission Core Reactor Quantum Reactor Propulsion Medium Treads Treads Medium Treads Wheel Wheel Utility Advanced Sensor Array Device Advanced Sensor Array Storage Large Matter Pod Processor Advanced Targeting Computer Protection Improved Light Armor Plating Weapon Advanced Beam Cannon Energy Gun Heavy EM Pulse Gun Energy Cannon Advanced Beam Cannon Ballistic Gun Improved KE Penetrator Ballistic Cannon Enhanced Gauss Cannon Launcher Long-range Missile Launcher Special Weapon Mining Laser Slashing Weapon Power Sword Build | -11 -10 -10 -9 -9 -9 -8 -8 -7 -7 -7 -7 -6 -6 -6 -6 -6 -5 -5 -5 -5 -4 ------- Run | Scr Mat Min Mat Min Exi Min Mat Fac Low Low Dat Pro Fac Low Low Zio Pro Fac Ext Cet Fac Slots Evolved 13 | 3 1 2 2 1 . . . . . . . . 3 . . . . . 1 . . Power 1 | . . 1 . . . . . . . . . . . . . . . . . . . Propulsion 3 | 1 . . . . . . . . . . . . 2 . . . . . . . . Utility 7 | 1 1 . 2 1 . . . . . . . . 1 . . . . . 1 . . Weapon 2 | 1 . 1 . . . . . . . . . . . . . . . . . . . Parts Attached 173 | 6 8 4 13 . 4 1 4 16 5 1 . 3 9 7 7 6 . 33 24 13 9 Power 23 | 1 2 1 2 . . . . 4 . . . 2 . 2 1 . . 4 2 2 . Engine 12 | 1 2 1 2 . . . . 4 . . . 1 . . . . . 1 . . . Core 9 | . . . . . . . . . . . . 1 . 2 1 . . 3 2 . . Reactor 2 | . . . . . . . . . . . . . . . . . . . . 2 . Propulsion 20 | 2 . . 1 . . . . 1 1 . . 1 3 . 1 . . 4 4 2 . Treads 14 | . . . . . . . . . . . . . 3 . 1 . . 4 4 2 . Leg . | . . . . . . . . . . . . . . . . . . . . . . Wheel 6 | 2 . . 1 . . . . 1 1 . . 1 . . . . . . . . . Hover . | . . . . . . . . . . . . . . . . . . . . . . Flight . | . . . . . . . . . . . . . . . . . . . . . . Utility 46 | 1 1 2 6 . 2 1 2 2 2 1 . . 3 5 2 1 . 5 5 2 3 Device 18 | 1 . 2 3 . 1 1 1 1 2 . . . . 1 . . . 1 2 . 2 Storage 1 | . 1 . . . . . . . . . . . . . . . . . . . . Processor 11 | . . . 1 . 1 . 1 . . . . . 3 . 1 . . 1 2 . 1 Hackware . | . . . . . . . . . . . . . . . . . . . . . . Protection 16 | . . . 2 . . . . 1 . 1 . . . 4 1 1 . 3 1 2 . Artifact . | . . . . . . . . . . . . . . . . . . . . . . Weapon 84 | 2 5 1 4 . 2 . 2 9 2 . . . 3 . 3 5 . 20 13 7 6 Energy Gun 9 | 2 5 . 1 . . . . . . . . . . . . . . . 1 . . Energy Cannon 45 | . . . 3 . 1 . 1 8 1 . . . 2 . 1 2 . 16 5 4 1 Ballistic Gun 12 | . . . . . . . . . . . . . . . . . . . 5 3 4 Ballistic Cannon 2 | . . . . . . . . . . . . . . . . . . 2 . . . Launcher 13 | . . . . . . . 1 1 1 . . . 1 . 2 2 . 2 2 . 1 Special Weapon 2 | . . 1 . . 1 . . . . . . . . . . . . . . . . Impact Weapon . | . . . . . . . . . . . . . . . . . . . . . . Slashing Weapon 1 | . . . . . . . . . . . . . . . . 1 . . . . . Piercing Weapon . | . . . . . . . . . . . . . . . . . . . . . . Special Melee Weapon . | . . . . . . . . . . . . . . . . . . . . . . Unidentified Prototypes 14 | . . . . . 3 . 1 2 . . . . 1 . . 1 . 1 . 3 2 Parts Lost 6 | . . 1 1 . . . . . 1 . . . . 2 1 . . . . . . Power . | . . . . . . . . . . . . . . . . . . . . . . Propulsion 1 | . . 1 . . . . . . . . . . . . . . . . . . . Utility 5 | . . . 1 . . . . . 1 . . . . 2 1 . . . . . . Weapon . | . . . . . . . . . . . . . . . . . . . . . . Highest Loss Streak 1 | . . 1 1 . . . . . 1 . . . . 1 1 . . . . . . Average Slot Usage (%) 91 | . 94 66 95 92 95 100 100 92 91 85 76 77 79 89 88 99 95 92 92 91 86 Engine 7 | . 13 10 16 15 15 15 15 15 15 11 7 6 6 6 6 6 6 . . . . Core 3 | . . . . . . . . . . . . 1 6 5 3 6 2 10 10 . . Reactor 1 | . . . . . . . . . . . . . . . . . . . . 10 10 Treads 11 | . . . . . . . . . . . . . 4 18 18 25 25 25 23 16 11 Wheel 5 | . 27 19 16 15 15 15 15 7 6 7 7 6 3 . . . . . . . . Device 17 | . 13 10 23 23 23 23 23 20 20 23 23 23 19 22 14 12 12 12 15 17 16 Processor 14 | . . . 7 7 10 15 16 23 17 15 15 15 15 13 10 12 12 16 17 17 17 Protection 7 | . . . 4 7 7 7 5 2 7 7 7 7 6 3 14 18 18 8 5 10 9 Energy Gun 2 | . 27 20 8 . . . . . . . . . . . . . . . 1 . . Energy Cannon 12 | . . . 15 23 23 23 23 22 15 11 7 7 8 12 14 11 12 14 6 10 4 Ballistic Gun 1 | . . . . . . . . . . . . . . . . . . . 3 1 12 Launcher 3 | . . . . . . . . . 7 7 7 7 6 6 3 6 6 3 2 2 . Naked Turns . | . . . . . . . . . . . . . . . . . . . . . . Heaviest Build 94 | 9 17 20 36 36 47 43 43 47 49 49 31 38 45 52 53 54 54 68 80 94 85 Greatest Support 160 | 20 20 20 20 20 20 20 20 28 28 28 28 28 76 76 99 99 99 116 116 160 160 Greatest Overweight (x) 16 | . . 1 1 1 2 2 2 1 16 1 1 2 12 . . . . . . . . Average Overweight (x) . | . . . . 1 1 2 1 . 1 1 1 1 1 . . . . . . . . Largest Inventory Capacity 4 | 2 2 2 2 2 2 2 3 4 4 4 4 4 4 4 4 4 4 4 4 4 4 Average Capacity 3 | 2 2 2 2 2 2 2 2 3 4 4 4 4 4 4 4 4 4 4 4 4 4 Most Carried 4 | 2 2 2 2 2 2 2 3 4 4 4 3 3 3 3 4 4 4 4 4 4 4 Average Carried 3 | 1 1 1 1 2 2 2 2 3 3 3 3 2 2 2 3 4 4 4 3 3 4 Final Capacity 4 | 2 2 2 2 2 2 2 3 4 4 4 4 4 4 4 4 4 4 4 4 4 4 Final Carried 4 | 2 1 1 2 2 2 2 3 4 3 3 3 2 3 3 4 4 4 4 4 4 4 Class Distribution -------------------- 34% | Scavenger-Mutant 19% | Mutant 16% | Skirmisher 12% | Scavenger-Gunner 8% | Gunner 4% | Scavenger-Skirmisher 3% | Tank Dominant Class ---------------- Mutant | -10/Materials Mutant | -10/Mines Tank | -9/Materials Tank | -9/Mines Tank | -9/Exiles Skirmisher | -8/Mines Skirmisher | -8/Materials Gunner | -7/Factory Skirmisher | -7/Lower Caves Skirmisher | -7/Lower Caves Mutant | -7/Data Miner Mutant | -6/Proximity Caves Mutant | -6/Factory Scavenger-Skirmisher | -6/Lower Caves Scavenger-Gunner | -6/Lower Caves Scavenger-Mutant | -6/Zion Scavenger-Mutant | -5/Proximity Caves Scavenger-Mutant | -5/Factory Scavenger-Mutant | -5/Extension Scavenger-Mutant | -5/Cetus Scavenger-Gunner | -4/Factory Resources | -11 -10 -10 -9 -9 -9 -8 -8 -7 -7 -7 -7 -6 -6 -6 -6 -6 -5 -5 -5 -5 -4 ----------- Run | Scr Mat Min Mat Min Exi Min Mat Fac Low Low Dat Pro Fac Low Low Zio Pro Fac Ext Cet Fac Matter Collected 4200 | 165 295 70 130 . 40 10 40 238 232 101 . 34 125 129 216 204 150 385 445 410 781 Remotely 40 | . . 20 20 . . . . . . . . . . . . . . . . . . Salvage Created 13845 | 30 752 481 1650 . . 646 567 860 356 85 . 12 105 356 172 . 88 2610 1873 280 2922 Parts 665 | 3 46 33 110 . . 17 39 52 17 4 . 7 2 21 19 . 7 98 39 16 135 Haulers Intercepted 17 | . 2 . 2 . . . 2 1 . . . . . . . . . 5 3 . 2 Recyclers Shooed 6 | . 1 1 2 . . 1 . . . . . . . . . . . 1 . . . Parts Field Recycled . | . . . . . . . . . . . . . . . . . . . . . . Retrieved Matter . | . . . . . . . . . . . . . . . . . . . . . . Parts Self-Destructed 34 | . . . . . . . . . 7 4 . 6 . 5 7 . 5 . . . . Prevented 10 | . . . . . . . . . 1 . . . . 3 6 . . . . . . Kills | -11 -10 -10 -9 -9 -9 -8 -8 -7 -7 -7 -7 -6 -6 -6 -6 -6 -5 -5 -5 -5 -4 ------- Run | Scr Mat Min Mat Min Exi Min Mat Fac Low Low Dat Pro Fac Low Low Zio Pro Fac Ext Cet Fac Combat Hostiles Destroyed 257 | . 15 13 40 . . 10 9 13 15 2 . 4 2 12 12 . 11 36 21 3 39 Guns 66 | . 15 11 7 . . . . . . . . . . . . . . . 3 1 29 Cannons 100 | . . . 27 . . 9 9 10 9 2 . 1 1 7 3 . 2 12 4 1 3 AOE 71 | . . 2 6 . . . . 3 6 . . 3 . 5 8 . 8 12 13 . 5 Classes Destroyed 20 | 1 5 3 6 . . . . 2 1 . . . . . . . . 1 1 . . Worker 17 | . . 2 3 . . . . 4 . . . . . . . . . 4 . . 4 Builder 15 | . 1 . 3 . . . 1 2 . . . . . . . . . 4 . . 4 Tunneler 6 | 1 . 2 . . . 1 . . . . . . . . . . . 1 1 . . Hauler 17 | . 2 . 2 . . . 2 1 . . . . . . . . . 5 3 . 2 Recycler 20 | . . 1 4 . . 3 1 2 . . . . . . . . . 4 5 . . Mechanic 2 | . . . 1 . . . . . . . . . . . . . . . 1 . . Operator 3 | . . . 1 . . . . 1 . . . . . . . . . 1 . . . Watcher 9 | . 2 . 1 . . . 1 2 . . . . . . . . . 1 . . 2 Swarmer 70 | . 6 9 12 . . 4 . 5 3 . . 4 . . 7 . 5 5 . . 10 Saboteur 3 | . . . . . . . . . . . . . . . . . . . 2 . 1 Grunt 94 | . 9 1 19 . . 5 6 3 2 . . . . 7 2 . 3 15 9 . 13 Brawler 9 | . . . 2 . . 1 . . . . . . . . . . . 1 4 . 1 Duelist 8 | . . . 2 . . . . . 1 . . . . 1 . . 1 1 2 . . Protector 2 | . . . 1 . . . . . . . . . . . . . . . . . 1 Sentry 29 | . . . 4 . . . 3 2 1 1 . . 2 . 1 . 1 5 3 . 6 Hunter 10 | . . . . . . . . 1 2 . . . . . . . . 3 1 1 2 Programmer 11 | . . . . . . . . 2 . 1 . . . . . . . 5 . . 3 Behemoth 3 | . . . . . . . . . . . . . . . . . . 1 . . 2 Cetus Guard 2 | . . . . . . . . . . . . . . . . . . . . 2 . Enhanced Grunt 3 | . . . . . . . . . . . . . . . . . . . . 1 2 Thief 2 | . . . . . . . . . . . . . . . 2 . . . . . . Master Thief 7 | . . . . . . . . . 2 . . . . 4 . . 1 . . . . Assembled 3 | . . 3 . . . . . . . . . . . . . . . . . . . Wasp 3 | . . . . . . . . . 3 . . . . . . . . . . . . Thug 1 | . . . . . . . . . 1 . . . . . . . . . . . . Guerrilla 4 | . . . . . . . . . . . . . . . . . . . . 4 . Best Kill Streak 17 | 1 5 6 17 . . 5 4 8 4 1 . 4 1 4 6 . 4 11 15 1 13 Combat Bots Only 14 | . 5 3 14 . . 4 3 3 4 1 . 4 1 4 6 . 4 6 10 1 9 Max Kills in Single Turn 8 | 1 2 3 4 . . 2 1 3 2 1 . 3 1 1 3 . 4 8 5 2 2 Gunslinging 1 | . 1 . 1 . . . . . . . . . . . . . . . . . 1 Exploded 5 | . . 2 3 . . . . 1 2 . . 3 . 1 3 . 4 5 4 . 2 Melee . | . . . . . . . . . . . . . . . . . . . . . . Uniques/NPCs Destroyed . | . . . . . . . . . . . . . . . . . . . . . . Combat | -11 -10 -10 -9 -9 -9 -8 -8 -7 -7 -7 -7 -6 -6 -6 -6 -6 -5 -5 -5 -5 -4 -------- Run | Scr Mat Min Mat Min Exi Min Mat Fac Low Low Dat Pro Fac Low Low Zio Pro Fac Ext Cet Fac Damage Taken 10839 | . 523 546 823 . . 156 168 452 416 344 . 107 233 737 275 . 219 2052 352 265 3171 Core 7723 | . 427 463 633 . . 118 126 337 302 252 . 75 158 593 139 . 124 1266 237 174 2299 Absorbed by Shields 348 | . . . . . . . . . . . . . . 103 . . . . 154 91 . Redirected to Core 6592 | . 308 267 457 . . 118 126 257 277 203 . 64 154 449 124 . 124 1189 196 151 2128 Core Remaining (%) 83 | 100 . 44 . . . 98 100 . . . . 77 . . . . 65 . . 100 . Volleys Fired 666 | 1 80 36 72 1 . 21 36 43 36 23 . 8 15 33 21 . 16 72 39 11 102 Largest 3 | 2 2 2 3 3 . 3 3 3 2 2 . 1 2 2 3 . 2 3 2 3 3 Hottest 261 | 80 90 100 204 204 . 204 204 213 133 125 . 60 132 132 222 . 132 261 162 197 162 Shots Fired 1399 | 2 158 61 206 3 . 63 108 109 58 29 . 8 19 50 36 . 22 139 69 31 228 Gun 508 | 2 158 50 74 . . . . . . . . . . . . . . . 26 8 190 Cannon 792 | . . . 132 3 . 63 108 103 44 22 . 6 18 34 26 . 12 135 33 22 31 Launcher 88 | . . . . . . . . 6 14 7 . 2 1 16 10 . 10 4 10 1 7 Special 11 | . . 11 . . . . . . . . . . . . . . . . . . . Kinetic 224 | . . . . . . . . . . . . . . . . . . . 26 8 190 Thermal 630 | 1 78 11 150 3 . 63 108 101 44 22 . 6 12 . 4 . . 25 2 . . Explosive 88 | . . . . . . . . 6 14 7 . 2 1 16 10 . 10 4 10 1 7 Electromagnetic 457 | 1 80 50 56 . . . . 2 . . . . 6 34 22 . 12 110 31 22 31 Robot Hit Streak 66 | 1 31 11 27 . . 26 23 26 18 12 . 3 21 27 10 . 13 66 27 28 44 Robot Miss Streak 3 | . 3 2 2 . . 1 2 1 1 1 . 1 . 2 1 . 1 1 2 1 2 Penetration Max 1 | . . . . . . . . . . . . . . . . . . . 1 1 1 Secondary Targets 16 | . 1 2 2 . . . . . . . . . . . . . . . . . 11 Max Gunslinging Chain 1 | . 1 1 1 . . . . . . . . . . . . . . . . . 1 Shots Hit Robots 966 | 1 92 33 113 . . 51 61 60 44 23 . 5 18 38 25 . 15 114 57 27 189 Core Hits 560 | 1 33 21 62 . . 19 21 37 26 5 . 6 5 26 17 . 27 72 76 23 83 Critical Hits 84 | . . . 14 . . 8 5 10 1 . . . . . 1 . . 2 7 1 35 Critical Kills 32 | . . . 5 . . 3 . 4 . . . . . . . . . 1 2 . 17 Critical Parts Destroyed 44 | . . . 8 . . 4 5 6 1 . . . . . 1 . . 1 5 . 13 Melee Attacks . | . . . . . . . . . . . . . . . . . . . . . . Impact . | . . . . . . . . . . . . . . . . . . . . . . Slashing . | . . . . . . . . . . . . . . . . . . . . . . Piercing . | . . . . . . . . . . . . . . . . . . . . . . Sneak Attacks . | . . . . . . . . . . . . . . . . . . . . . . Combat Hostiles . | . . . . . . . . . . . . . . . . . . . . . . Follow-up Attacks . | . . . . . . . . . . . . . . . . . . . . . . Damage Inflicted 41419 | 11 1115 587 2829 . . 941 1365 2602 2177 942 . 460 524 1903 1788 . 1276 7516 6263 1601 7519 Guns 9565 | 11 1115 438 670 . . . . . . . . . . . . . . . 825 436 6070 Cannons 16055 | . . . 1498 . . 941 1365 1825 1090 589 . 124 498 755 415 . 252 4327 1045 579 752 Explosions 15772 | . . 149 661 . . . . 777 1087 353 . 336 26 1148 1373 . 1024 3170 4385 586 697 Melee . | . . . . . . . . . . . . . . . . . . . . . . Ramming 27 | . . . . . . . . . . . . . . . . . . 19 8 . . Kinetic 7331 | . . . . . . . . . . . . . . . . . . . 825 436 6070 Thermal 12397 | 11 593 149 2296 . . 941 1365 1987 1090 589 . 124 370 . 39 . . 2699 144 . . Explosive 12775 | . . . . . . . . 615 1087 353 . 336 26 1148 1373 . 1024 1249 4281 586 697 Electromagnetic 8889 | . 522 438 533 . . . . . . . . . 128 755 376 . 252 3549 1005 579 752 Impact . | . . . . . . . . . . . . . . . . . . . . . . Slashing . | . . . . . . . . . . . . . . . . . . . . . . Piercing . | . . . . . . . . . . . . . . . . . . . . . . Highest Corruption 13 | . . . . . . . . 1 1 1 1 1 . . . . . 10 11 11 13 Average Corruption 5 | . . . . . . . . 1 1 1 1 1 . . . . . 7 10 11 7 Corruption Purged . | . . . . . . . . . . . . . . . . . . . . . . Effects 171 | . . . . . . . . 1 9 1 . 1 . . . . . 36 51 37 35 Message Errors 29 | . . . . . . . . . 2 1 . . . . . . . 7 11 8 . Matter Fused 23 | . . . . . . . . . . . . . . . . . . 5 9 4 5 Heat Flow Errors 19 | . . . . . . . . . . . . . . . . . . . 10 6 3 Energy Discharges 15 | . . . . . . . . 1 5 . . . . . . . . 2 3 3 1 Parts Rejected 2 | . . . . . . . . . . . . . . . . . . . 1 . 1 Data Loss (minor) 16 | . . . . . . . . . 2 . . 1 . . . . . 4 3 2 4 Data Loss (major) 4 | . . . . . . . . . . . . . . . . . . 2 1 1 . Misfires 3 | . . . . . . . . . . . . . . . . . . . 2 1 . Alerts 1 | . . . . . . . . . . . . . . . . . . . . 1 . Misdirections 10 | . . . . . . . . . . . . . . . . . . . 3 6 1 Targeting Errors 38 | . . . . . . . . . . . . . . . . . . 11 8 5 14 Weapon Failures 11 | . . . . . . . . . . . . . . . . . . 5 . . 6 Overload Shots . | . . . . . . . . . . . . . . . . . . . . . . Overflow Damage 1952 | . . . 149 . . 13 33 121 93 19 . 51 5 52 110 . 192 791 246 . 77 Projectiles 424 | . . . 13 . . 13 33 16 26 12 . 6 5 2 24 . 28 208 38 . . Explosions 1528 | . . . 136 . . . . 105 67 7 . 45 . 50 86 . 164 583 208 . 77 Melee . | . . . . . . . . . . . . . . . . . . . . . . Knockbacks 1 | . . . . . . . . . . . . . . . . . . 1 . . . Impact 1 | . . . . . . . . . . . . . . . . . . 1 . . . Kinetic . | . . . . . . . . . . . . . . . . . . . . . . Secondary . | . . . . . . . . . . . . . . . . . . . . . . Self-Inflicted Damage 963 | . . 13 57 . . . . . 13 216 . . . 501 37 . . 67 . 59 . Shots 24 | . . 1 2 . . . . . 1 4 . . . 11 2 . . 2 . 1 . Rammed 3 | . . . . . . . . . . . . . . . . . . 2 1 . . Targets Rammed 3 | . . . . . . . . . . . . . . . . . . 2 1 . . Kicked . | . . . . . . . . . . . . . . . . . . . . . . Crushed . | . . . . . . . . . . . . . . . . . . . . . . Highest Temperature 246 | 18 225 13 222 . . 7 . 144 . . . . . . . . . 63 246 223 200 Average Temperature 64 | 12 102 8 78 . . 3 . 30 . . . . . . . . . 15 82 60 33 Received Heat Transfer 2335 | . 249 80 318 . . 63 90 48 72 48 . 6 96 130 63 . 27 366 128 44 507 Effects 2 | . 2 . . . . . . . . . . . . . . . . . . . . Interference 2 | . 2 . . . . . . . . . . . . . . . . . . . . Siege Activations . | . . . . . . . . . . . . . . . . . . . . . . Robots Corrupted 23 | . . . . . . . . . . . . . . . 1 . 1 15 2 1 3 Combat Hostiles 18 | . . . . . . . . . . . . . . . 1 . 1 12 1 1 2 Parts Fried 72 | . 1 . 2 . . . . . . . . . . 8 1 . 4 34 10 5 7 Impact Corruptions . | . . . . . . . . . . . . . . . . . . . . . . Robots Melted 2 | . . . . . . 1 . . . . . . 1 . . . . . . . . Combat Hostiles 2 | . . . . . . 1 . . . . . . 1 . . . . . . . . Parts Melted 30 | . 2 . 3 . . 4 4 2 8 3 . . 1 . . . . 3 . . . Heat Transferred 15694 | 25 1504 50 3543 . . 1702 2035 2337 1295 666 . 148 444 . 37 . . 1790 118 . . Parts Sabotaged 3 | . . . . . . . . . . . . . . . . . . . . . 3 Parts Stolen 15 | . . . . . . . . . 2 3 . 2 . 4 3 . 1 . . . . Parts Stripped . | . . . . . . . . . . . . . . . . . . . . . . Power Chain Reactions 7 | . . 2 3 . . . . . . . . . . . . . . 1 1 . . Missiles Intercepted . | . . . . . . . . . . . . . . . . . . . . . . Alert | -11 -10 -10 -9 -9 -9 -8 -8 -7 -7 -7 -7 -6 -6 -6 -6 -6 -5 -5 -5 -5 -4 ------- Run | Scr Mat Min Mat Min Exi Min Mat Fac Low Low Dat Pro Fac Low Low Zio Pro Fac Ext Cet Fac Peak Influence 2147 | 5 601 495 1144 460 . 265 476 722 . . . . 65 . . . . 1131 2147 1851 2123 Average Influence 626 | 1 383 420 668 458 . 113 303 288 . . . . 34 . . . . 402 982 1572 1416 Maximum Alert Level 5 | . 2 2 4 2 . 1 2 3 . . . . . . . . . 4 5 5 5 Low Security (%) 29 | 100 11 . 10 . . 91 20 51 . . . . 100 . . . . 52 . . . Level 1 13 | . 36 23 15 . . 8 63 30 . . . . . . . . . . . . . Level 2 22 | . 51 76 18 100 . . 16 16 . . . . . . . . . 16 46 . . Level 3 14 | . . . 53 . . . . 1 . . . . . . . . . 29 15 . 11 Level 4 13 | . . . 1 . . . . . . . . . . . . . . 1 24 51 67 Level 5 5 | . . . . . . . . . . . . . . . . . . . 13 48 . High Security 2 | . . . . . . . . . . . . . . . . . . . . . 21 Max Security . | . . . . . . . . . . . . . . . . . . . . . . Squads Dispatched 52 | . 5 . 7 . . . 2 7 . . . . 2 . . . . 9 8 1 11 Investigation 15 | . 5 . 2 . . . 2 2 . . . . 1 . . . . 2 . 1 . Extermination 4 | . . . . . . . . 1 . . . . . . . . . 2 . . 1 Reinforcement 14 | . . . 2 . . . . 4 . . . . 1 . . . . 2 2 . 3 Assault 19 | . . . 3 . . . . . . . . . . . . . . 3 6 . 7 Garrison . | . . . . . . . . . . . . . . . . . . . . . . Intercept . | . . . . . . . . . . . . . . . . . . . . . . Construction Impeded 5 | . . . 1 . . . . 1 . . . . . . . . . 1 1 . 1 Haulers Reinforced 3 | . . . . . . . . . . . . . 1 . . . . 1 . . 1 Stealth | -11 -10 -10 -9 -9 -9 -8 -8 -7 -7 -7 -7 -6 -6 -6 -6 -6 -5 -5 -5 -5 -4 --------- Run | Scr Mat Min Mat Min Exi Min Mat Fac Low Low Dat Pro Fac Low Low Zio Pro Fac Ext Cet Fac Distress Signals 9 | . 2 . 1 . . . 1 . . . . . . . . . . . . 2 3 Communications Jammed . | . . . . . . . . . . . . . . . . . . . . . . Distress Signals . | . . . . . . . . . . . . . . . . . . . . . . Times Spotted 365 | . 23 12 52 . . 8 11 24 15 5 . 7 2 13 16 . 11 45 53 19 49 Peak Tracking Total 18 | . 7 3 9 . . 4 3 5 4 2 . 4 1 4 4 . 4 5 18 5 10 Tactical Retreats 18 | . 1 . 1 . . 1 2 . 1 . . . . . 4 . . 5 1 . 2 Traps | -11 -10 -10 -9 -9 -9 -8 -8 -7 -7 -7 -7 -6 -6 -6 -6 -6 -5 -5 -5 -5 -4 ------- Run | Scr Mat Min Mat Min Exi Min Mat Fac Low Low Dat Pro Fac Low Low Zio Pro Fac Ext Cet Fac Traps Triggered 15 | . 1 . 2 . . . 2 3 . . . . . . . . . 2 1 . 4 Indirectly 1 | . . . . . . . . . . . . . . . . . . 1 . . . Trap Hack Attempts . | . . . . . . . . . . . . . . . . . . . . . . Triggered . | . . . . . . . . . . . . . . . . . . . . . . Disarmed . | . . . . . . . . . . . . . . . . . . . . . . Reprogrammed . | . . . . . . . . . . . . . . . . . . . . . . Reused . | . . . . . . . . . . . . . . . . . . . . . . Traps Extracted . | . . . . . . . . . . . . . . . . . . . . . . Installed . | . . . . . . . . . . . . . . . . . . . . . . Triggered 1 | . . . . . . . . . 1 . . . . . . . . . . . . Machines | -11 -10 -10 -9 -9 -9 -8 -8 -7 -7 -7 -7 -6 -6 -6 -6 -6 -5 -5 -5 -5 -4 ---------- Run | Scr Mat Min Mat Min Exi Min Mat Fac Low Low Dat Pro Fac Low Low Zio Pro Fac Ext Cet Fac Machines Disabled 87 | . 17 3 10 1 . 1 9 12 . . . . . . . . . 26 3 . 5 Max in Single Turn 15 | . 1 1 4 1 . 1 1 9 . . . . . . . . . 15 1 . 3 Garrison Access 3 | . . . . . . . 1 . . . . . . . . . . 2 . . . Machines Sabotaged . | . . . . . . . . . . . . . . . . . . . . . . Garrisons Compromised . | . . . . . . . . . . . . . . . . . . . . . . Overloaded Fab Kills . | . . . . . . . . . . . . . . . . . . . . . . Fab Network Shutdowns . | . . . . . . . . . . . . . . . . . . . . . . Hacking | -11 -10 -10 -9 -9 -9 -8 -8 -7 -7 -7 -7 -6 -6 -6 -6 -6 -5 -5 -5 -5 -4 --------- Run | Scr Mat Min Mat Min Exi Min Mat Fac Low Low Dat Pro Fac Low Low Zio Pro Fac Ext Cet Fac Machines Accessed 40 | . 8 1 5 . . . 6 3 1 . 4 . 1 1 . 1 . 7 . 2 . Terminals 22 | . 6 1 5 . . . 4 1 1 . . . . . . . . 2 . 2 . Fabricators 1 | . . . . . . . . . . . . . . . . . . 1 . . . Repair Stations . | . . . . . . . . . . . . . . . . . . . . . . Recycling Units 8 | . 2 . . . . . 1 2 . . . . 1 . . . . 2 . . . Scanalyzers . | . . . . . . . . . . . . . . . . . . . . . . Garrison Access 3 | . . . . . . . 1 . . . . . . . . . . 2 . . . Total Hacks 121 | . 28 3 14 . . . 15 5 5 . 26 . 3 1 . 4 . 13 . 4 . Successful 73 | . 16 2 4 . . . 6 3 2 . 26 . 2 1 . 4 . 6 . 1 . Failed 46 | . 11 1 10 . . . 9 2 2 . . . 1 . . . . 7 . 3 . Catastrophic 9 | . 1 . 1 . . . 1 . 1 . . . . . . . . 4 . 1 . Database Lockouts 2 | . 1 . . . . . . . 1 . . . . . . . . . . . . Manual 55 | . 12 1 8 . 7 . 11 3 4 . . . 1 . . . . 7 . 1 . Terminals 69 | . 22 3 14 . . . 13 2 5 . . . . . . . . 6 . 4 . Fabricators 2 | . . . . . . . . . . . . . . . . . . 2 . . . Repair Stations . | . . . . . . . . . . . . . . . . . . . . . . Recycling Units 16 | . 6 . . . . . 1 3 . . . . 3 . . . . 3 . . . Scanalyzers . | . . . . . . . . . . . . . . . . . . . . . . Garrison Access 3 | . . . . . . . 1 . . . . . . . . . . 2 . . . Terminal Hacks 56 | . 11 2 4 . . . 4 1 2 . 26 . . 1 . 4 . . . 1 . Record 14 | . 1 . . . . . . . 1 . 11 . . . . . . . . 1 . Part Schematic 11 | . . . . . . . . . . . 7 . . . . 4 . . . . . Robot Schematic 5 | . . . . . . . . . . . 5 . . . . . . . . . . Prototype ID Bank 16 | . 6 1 2 . . . 3 . 1 . 3 . . . . . . . . . . Open Door 1 | . . . . . . . . . . . . . . 1 . . . . . . . Level Access Points 2 | . . . 1 . . . . 1 . . . . . . . . . . . . . Branch Access Points 1 | . . . . . . . 1 . . . . . . . . . . . . . . Recall Investigation 1 | . 1 . . . . . . . . . . . . . . . . . . . . Registered Prototypes 1 | . 1 . . . . . . . . . . . . . . . . . . . . Zone Layout 4 | . 2 1 1 . . . . . . . . . . . . . . . . . . Fabricator Hacks 2 | . . . . . . . . . . . . . . . . . . 2 . . . Load Schematic 1 | . . . . . . . . . . . . . . . . . . 1 . . . Build 1 | . . . . . . . . . . . . . . . . . . 1 . . . Repair Station Hacks . | . . . . . . . . . . . . . . . . . . . . . . Recycling Unit Hacks 4 | . 2 . . . . . . . . . . . 1 . . . . 1 . . . Retrieve Components 4 | . 2 . . . . . . . . . . . 1 . . . . 1 . . . Scanalyzer . | . . . . . . . . . . . . . . . . . . . . . . Garrison Access Hacks 3 | . . . . . . . 1 . . . . . . . . . . 2 . . . Seal Access 3 | . . . . . . . 1 . . . . . . . . . . 2 . . . Unauthorized Hacks 8 | . 3 . . . . . 1 2 . . . . 1 . . . . 1 . . . Terminals . | . . . . . . . . . . . . . . . . . . . . . . Fabricators . | . . . . . . . . . . . . . . . . . . . . . . Repair Stations . | . . . . . . . . . . . . . . . . . . . . . . Recycling Units 8 | . 3 . . . . . 1 2 . . . . 1 . . . . 1 . . . Reject 2 | . 1 . . . . . . . . . . . . . . . . 1 . . . Tunnel 6 | . 2 . . . . . 1 2 . . . . 1 . . . . . . . . Scanalyzers . | . . . . . . . . . . . . . . . . . . . . . . Garrison Access . | . . . . . . . . . . . . . . . . . . . . . . Data Cores Recovered 1 | . . . 1 . . . . . . . . . . . . . . . . . . Used 1 | . . . 1 . . . . . . . . . . . . . . . . . . Hacking Detections 23 | . 5 1 5 . . . 4 1 1 . . . 1 . . . . 3 . 2 . Full Trace Events 6 | . . . 2 . . . 1 . . . . . . . . . . 2 . 1 . Feedback Events . | . . . . . . . . . . . . . . . . . . . . . . Feedback Blocked . | . . . . . . . . . . . . . . . . . . . . . . Robot Schematics Acquired 5 | . . . . . . . . . . . 5 . . . . . . . . . . Robots Built . | . . . . . . . . . . . . . . . . . . . . . . Matter . | . . . . . . . . . . . . . . . . . . . . . . Time . | . . . . . . . . . . . . . . . . . . . . . . Total Robot Build Rating . | . . . . . . . . . . . . . . . . . . . . . . Part Schematics Acquired 11 | . . . . . . . . . . . 7 . . . . 4 . . . . . Parts Built 1 | . . . . . . . . . . . . . . . . . . 1 . . . Matter 285 | . . . . . . . . . . . . . . . . . . 285 . . . Time 76 | . . . . . . . . . . . . . . . . . . 76 . . . Total Part Build Rating 5 | . . . . . . . . . . . . . . . . . . 5 . . . Parts Repaired . | . . . . . . . . . . . . . . . . . . . . . . Time . | . . . . . . . . . . . . . . . . . . . . . . Parts Recycled . | . . . . . . . . . . . . . . . . . . . . . . Recycled Matter . | . . . . . . . . . . . . . . . . . . . . . . Retrieved Matter . | . . . . . . . . . . . . . . . . . . . . . . Retrieved Components 22 | . 11 . . . . . . . . . . . 2 . . . . 9 . . . Parts Scanalyzed . | . . . . . . . . . . . . . . . . . . . . . . Part Schematics Acquired . | . . . . . . . . . . . . . . . . . . . . . . Parts Damaged . | . . . . . . . . . . . . . . . . . . . . . . Bothacking | -11 -10 -10 -9 -9 -9 -8 -8 -7 -7 -7 -7 -6 -6 -6 -6 -6 -5 -5 -5 -5 -4 ------------ Run | Scr Mat Min Mat Min Exi Min Mat Fac Low Low Dat Pro Fac Low Low Zio Pro Fac Ext Cet Fac Used RIF Installer . | . . . . . . . . . . . . . . . . . . . . . . Robots Hacked . | . . . . . . . . . . . . . . . . . . . . . . Non-combat . | . . . . . . . . . . . . . . . . . . . . . . Combat . | . . . . . . . . . . . . . . . . . . . . . . Robot Hacks Applied . | . . . . . . . . . . . . . . . . . . . . . . Relay Couplers Released . | . . . . . . . . . . . . . . . . . . . . . . Robots Rewired 5 | . . . . . . . . . . . . . 1 . . . . . 4 . . Allies Hacked . | . . . . . . . . . . . . . . . . . . . . . . Hacks Repelled . | . . . . . . . . . . . . . . . . . . . . . . Allies | -11 -10 -10 -9 -9 -9 -8 -8 -7 -7 -7 -7 -6 -6 -6 -6 -6 -5 -5 -5 -5 -4 -------- Run | Scr Mat Min Mat Min Exi Min Mat Fac Low Low Dat Pro Fac Low Low Zio Pro Fac Ext Cet Fac Total Allies 25 | . . 3 . . . . . 3 . . . 1 1 . . . . . 12 5 . Largest Group 11 | . . 3 . . . . . 3 . . . 1 1 . . . . . 11 11 4 Highest-Rated Group 793 | . . 40 . . . . . 93 . . . 94 29 . . . . . 492 793 426 Highest-Rated Ally 156 | . . 16 . . . . . 31 . . . 94 29 . . . . . 156 156 150 Total Orders 1 | . . . . . . . . . . . . . . . 1 . . . . . . EXPLORE 1 | . . . . . . . . . . . . . . . 1 . . . . . . Ally Attacks 268 | . . . . . . . . 31 . . . 9 1 . . . . . 136 85 6 Total Damage 5903 | . . . . . . . . 422 . . . 227 . . . . . . 2712 2411 131 Kills 59 | . . . . . . . . 6 . . . 2 . . . . . . 31 20 . Allies Corrupted 2 | . . . . . . . . . . . . . . . . . . . . . 2 Allies Melted . | . . . . . . . . . . . . . . . . . . . . . . Intel | -11 -10 -10 -9 -9 -9 -8 -8 -7 -7 -7 -7 -6 -6 -6 -6 -6 -5 -5 -5 -5 -4 ------- Run | Scr Mat Min Mat Min Exi Min Mat Fac Low Low Dat Pro Fac Low Low Zio Pro Fac Ext Cet Fac Robot Analysis Total . | . . . . . . . . . . . . . . . . . . . . . . Derelict Logs Recovered 11 | . . 1 . . . . . . 1 2 . 2 . 1 . 2 2 . . . . Drone Launches 2 | . . . . . . . . . . . . . . . 2 . . . . . . Drone Recoveries . | . . . . . . . . . . . . . . . . . . . . . . Exploration | -11 -10 -10 -9 -9 -9 -8 -8 -7 -7 -7 -7 -6 -6 -6 -6 -6 -5 -5 -5 -5 -4 ------------- Run | Scr Mat Min Mat Min Exi Min Mat Fac Low Low Dat Pro Fac Low Low Zio Pro Fac Ext Cet Fac Turns Passed 15066 | 62 686 450 734 79 306 247 574 1136 1003 898 117 568 482 657 452 1382 595 2028 1055 715 840 Spaces Moved 9556 | 62 492 389 442 85 318 164 461 881 778 760 107 487 236 338 238 856 340 978 475 359 310 Core 12 | 5 . . . . . . . . 3 . . . 4 . . . . . . . . Treads 3988 | . . . . . . . . . . . . . 94 338 238 856 340 978 475 359 310 Legs . | . . . . . . . . . . . . . . . . . . . . . . Wheels 5556 | 57 492 389 442 85 318 164 461 881 775 760 107 487 138 . . . . . . . . Hover . | . . . . . . . . . . . . . . . . . . . . . . Flight . | . . . . . . . . . . . . . . . . . . . . . . Fastest Speed 50 | 50 80 80 80 90 90 100 90 90 110 110 110 110 120 160 160 160 160 160 160 160 160 Average Speed 125 | 77 80 81 88 90 93 100 92 107 112 110 110 112 146 160 160 160 160 160 160 160 160 Slowest Speed 850 | 80 80 90 90 90 100 100 100 110 850 110 110 120 650 160 160 160 160 160 160 160 160 Overloaded Moves . | . . . . . . . . . . . . . . . . . . . . . . Propulsion Burnouts . | . . . . . . . . . . . . . . . . . . . . . . Robots Hopped 1 | . . . . . . . . . . . . . . . . . . . 1 . . Cave-ins Triggered 1 | . . 1 . . . . . . . . . . . . . . . . . . . Exploration Rate (%) 53 | 3 87 76 35 31 62 34 36 29 92 94 71 71 6 64 53 84 63 28 58 76 13 Regions Visited 21 Branch Regions 14 Pre-discovered Areas 10 | . 2 . . . . . 1 2 . . 1 . 1 1 . 2 . . . . . Known Exits Taken 16 | . . . 1 1 1 1 1 1 1 1 1 1 1 1 . . 1 1 1 1 . Unknown Exits Taken 5 | 1 1 1 . . . . . . . . . . . . 1 1 . . . . . Scrap Searched 15 | . . 1 . . . . . . 1 4 . . . 1 2 5 1 . . . . Spaces Dug 107 | . . 6 . . . . . 5 4 . . . . 45 30 . 11 . . . 6 Terrain Destroyed 868 | . . 14 26 . . . 14 51 90 46 . 22 15 72 115 . 73 62 113 19 136 Melee . | . . . . . . . . . . . . . . . . . . . . . . Projectile 163 | . . 7 . . . . 14 13 7 3 . 2 . . 1 . . 3 10 2 101 AOE 705 | . . 7 26 . . . . 38 83 43 . 20 15 72 114 . 73 59 103 17 35 Actions | -11 -10 -10 -9 -9 -9 -8 -8 -7 -7 -7 -7 -6 -6 -6 -6 -6 -5 -5 -5 -5 -4 --------- Run | Scr Mat Min Mat Min Exi Min Mat Fac Low Low Dat Pro Fac Low Low Zio Pro Fac Ext Cet Fac Total 11392 | 70 627 439 622 85 325 200 527 984 843 793 106 499 352 402 272 869 367 1304 714 484 508 Wait 490 | . 23 4 28 . . 7 9 9 12 2 . . 51 3 1 2 . 116 98 72 53 Move 9533 | 61 491 388 441 84 317 163 460 880 777 759 106 486 235 337 237 855 339 977 472 358 310 Hop 1 | . . . . . . . . . . . . . . . . . . . 1 . . Pick Up 23 | 2 2 1 1 . . . 2 3 . 1 . . 2 1 2 . . 3 2 1 . Fast Attach 98 | 6 2 3 10 . 4 . 4 8 2 . . 2 7 6 3 5 . 12 11 9 4 Attach 9 | . . 1 . . . . . . 1 . . 1 1 1 1 . . . 2 1 . Detach 12 | . . . . . 1 . . . . . . . 2 . . . . 1 4 3 1 Swap 66 | . 6 . 3 . . 1 . 8 2 1 . . 1 . 3 1 . 21 11 3 5 Drop 99 | . 8 1 9 . 3 1 5 12 1 1 . . 2 2 . 6 . 21 12 11 4 Fire 666 | 1 80 36 72 1 . 21 36 43 36 23 . 8 15 33 21 . 16 72 39 11 102 Melee . | . . . . . . . . . . . . . . . . . . . . . . Ram . | . . . . . . . . . . . . . . . . . . . . . . Kick . | . . . . . . . . . . . . . . . . . . . . . . Crush 3 | . . . . . . . . . . . . . . . . . . 2 1 . . Escape Stasis 8 | . . . . . . . . 8 . . . . . . . . . . . . . Rewire 53 | . . . . . . . . . . . . . 30 . . . . . 23 . . Trap . | . . . . . . . . . . . . . . . . . . . . . . Miscellaneous 331 | . 15 5 58 . . 7 11 13 12 6 . 2 6 19 4 . 12 79 38 15 29 Route ------- -11/Scrapyard -10/Materials (discovered 5 exits: *Mat x3 / *Min x2) -10/Mines (discovered 2 exits: *Mat x2) -9/Materials (discovered 4 exits: *Mat x3 / *Min) -9/Mines -9/Exiles (discovered 2 exits: *Min x2) -8/Mines (discovered 2 exits: *Mat x2) -8/Materials -7/Factory (discovered 6 exits: *Fac x4 / *Sto / *Low) -7/Lower Caves (discovered 2 exits: *Low / *Zio) -7/Lower Caves (discovered 2 exits: *Fac / *Dat) -7/Data Miner -6/Proximity Caves -6/Factory (discovered 3 exits: *Fac x2 / *Low) -6/Lower Caves -6/Lower Caves -6/Zion -5/Proximity Caves -5/Factory (discovered 2 exits: [*Upp] / *Ext) -5/Extension (discovered 2 exits: *Fac / *Cet) -5/Cetus (discovered 3 exits: *Fac x2 / [*Arc]) -4/Factory History --------- Turn | Location | Event 1 | -11/Scrapyard | Upgraded with Propulsion slot (x1) 1 | -11/Scrapyard | Upgraded with Utility slot (x1) 1 | -11/Scrapyard | Upgraded with Weapon slot (x1) 19 | -11/Scrapyard | Discovered new exit (range 15) 63 | -11/Scrapyard | Entered Materials 224 | -10/Materials | Discovered new exit (range 17) 244 | -10/Materials | Reached level 2 289 | -10/Materials | Central database locked down 310 | -10/Materials | Build established: Mutant 362 | -10/Materials | Discovered new exit (range 14) 450 | -10/Materials | Discovered new exit (range 16) 534 | -10/Materials | Discovered new exit (range 16) 574 | -10/Materials | Reached level 3 666 | -10/Materials | Upgraded with Utility slot (x1) 707 | -10/Materials | Discovered new exit (range 16) 749 | -10/Materials | Entered Mines 752 | -10/Mines | Reached level 4 758 | -10/Mines | Upgraded with Power slot (x1) 758 | -10/Mines | Upgraded with Weapon slot (x1) 811 | -10/Mines | Discovered new exit (range 15) 953 | -10/Mines | Assisted by bots powering up and referring to "LRC-V3" 1002 | -10/Mines | Learned location of 1 exit from Materials 1036 | -10/Mines | Excavation squad dispatched 1036 | -10/Mines | A large section of the Mines collapsed 1114 | -10/Mines | Crushed by falling debris 1114 | -10/Mines | Core integrity fell below 50% 1172 | -10/Mines | Discovered new exit (range 10) 1199 | -10/Mines | Entered Materials 1200 | -9/Materials | Identified exit to Materials 1200 | -9/Materials | Core integrity fell below 50% 1201 | -9/Materials | Reached level 5 1203 | -9/Materials | Upgraded with Utility slot (x1) 1276 | -9/Materials | Reached level 6 1411 | -9/Materials | Reached level 7 1432 | -9/Materials | Destroyed 10 combat bots 1463 | -9/Materials | Upgraded with Utility slot (x1) 1560 | -9/Materials | Reached level 8 1584 | -9/Materials | Destroyed 13 combat bots 1599 | -9/Materials | First assault squad dispatched 1795 | -9/Materials | Destroyed 14 combat bots 1904 | -9/Materials | Reached level 9 1910 | -9/Materials | Discovered new exit (range 10) 1932 | -9/Materials | Identified exit to Mines 1933 | -9/Materials | Entered Mines 1933 | -9/Mines | Upgraded with Utility slot (x1) 1996 | -9/Mines | Discovered new exit (range 11) 2004 | -9/Mines | Assembled infested the area 2009 | -9/Mines | Deemed a non-threat by the Exiles lab entrance 2011 | -9/Mines | Identified exit to Exiles 2012 | -9/Mines | Entered Exiles 2022 | -9/Exiles | Discovered new exit (range 20) 2056 | -9/Exiles | Met 8R-AWN 2070 | -9/Exiles | Met EX-HEX 2096 | -9/Exiles | Met EX-BIN 2117 | -9/Exiles | Build established: Tank 2156 | -9/Exiles | Aligned with FarCom system 2157 | -9/Exiles | Given EX-Vault access code 2180 | -9/Exiles | Opened EX-Vault 2185 | -9/Exiles | Found Prototype Processor 2185 | -9/Exiles | Identified 0b10 Alert Chip 2189 | -9/Exiles | Found Prototype Device 2189 | -9/Exiles | Identified Cloak of Protection 2193 | -9/Exiles | Found Prototype Special Weapon 2193 | -9/Exiles | Identified Field Lobotomy Kit 2217 | -9/Exiles | Warned to stay clear of 0b10 Research branches 2246 | -9/Exiles | Met EX-DEC 2304 | -9/Exiles | Discovered new exit (range 14) 2316 | -9/Exiles | Identified exit to Mines 2318 | -9/Exiles | Stole three prototypes: Cloak of Protection, 0b10 Alert Chip, Field Lobotomy Kit 2318 | -9/Exiles | Entered Mines 2368 | -8/Mines | Discovered exit to Materials (range 5) 2432 | -8/Mines | Reached level 10 2455 | -8/Mines | Discovered exit to Materials (range 15) 2491 | -8/Mines | Build established: Skirmisher 2565 | -8/Mines | Entered Materials 2567 | -8/Materials | Reached level 11 2769 | -8/Materials | Reached level 12 2988 | -8/Materials | Discovered new exit (range 18) 3046 | -8/Materials | Identified exit to Factory 3139 | -8/Materials | Entered Factory 3141 | -7/Factory | FarCom data flow suspended 3141 | -7/Factory | Reached level 13 3203 | -7/Factory | Discovered new exit (range 3) 3205 | -7/Factory | Identified exit to Storage 3299 | -7/Factory | Build established: Gunner 3385 | -7/Factory | Discovered new exit (range 7) 3392 | -7/Factory | Identified exit to Factory 3508 | -7/Factory | Allied Derelicts emerged from ambush trap array 3717 | -7/Factory | Reached level 14 4140 | -7/Factory | Reached level 15 4243 | -7/Factory | Discovered new exit (range 9) 4267 | -7/Factory | Identified exit to Lower Caves 4275 | -7/Factory | Entered Lower Caves 4276 | -7/Lower Caves | A Derelict revealed a hidden shortcut to a safe place 4468 | -7/Lower Caves | Attracted the attention of an 0b10 checkpoint 4489 | -7/Lower Caves | Learned Factory non-interactive machine intel 4558 | -7/Lower Caves | Spotted 9O-VMA(f) 4559 | -7/Lower Caves | Encountered a Master Thief 4573 | -7/Lower Caves | Destroyed 9O-VMA(f) 4845 | -7/Lower Caves | Central database locked down 4881 | -7/Lower Caves | Encountered a Warlord checkpoint 4941 | -7/Lower Caves | Spotted T0-3S9(f) 4942 | -7/Lower Caves | Encountered a Master Thief 4946 | -7/Lower Caves | Arm. Huge Wheel stolen by Master Thief 4951 | -7/Lower Caves | Destroyed T0-3S9(f) 5001 | -7/Lower Caves | Build established: Skirmisher 5076 | -7/Lower Caves | Discovered new exit (range 11) 5086 | -7/Lower Caves | Identified exit to Lower Caves 5117 | -7/Lower Caves | Ambushed by wild Derelicts 5278 | -7/Lower Caves | Entered another Lower Caves area 5294 | -7/Lower Caves | Discovered exit to Factory (range 12) 5368 | -7/Lower Caves | Identified exit to Data Miner 5589 | -7/Lower Caves | Learned location of 1 exit from Factory 5695 | -7/Lower Caves | Spotted MH-2B1(f) 5697 | -7/Lower Caves | Encountered a Master Thief 5700 | -7/Lower Caves | Plasma Cannon stolen by Master Thief 5734 | -7/Lower Caves | Attracted the attention of an 0b10 checkpoint 5802 | -7/Lower Caves | Spotted 97-YB3(f) 5803 | -7/Lower Caves | Encountered a Master Thief 5804 | -7/Lower Caves | Spotted H8-T0V(f) 5805 | -7/Lower Caves | Encountered a Master Thief 5809 | -7/Lower Caves | Hvy. Ion Cannon stolen by Master Thief 5821 | -7/Lower Caves | Cld. Deuterium Engine stolen by Master Thief 5978 | -7/Lower Caves | Reached level 16 6101 | -7/Lower Caves | Build established: Mutant 6176 | -7/Lower Caves | Entered Data Miner 6176 | -7/Data Miner | Discovered new exit (range 6) 6197 | -7/Data Miner | Met Data Miner 6223 | -7/Data Miner | Learned location of Section 7 (-2) 6223 | -7/Data Miner | Acquired the access code to Warlord's prototype stash 6245 | -7/Data Miner | Received God Mode back door access code from Data Miner 6271 | -7/Data Miner | Identified exit to Proximity Caves 6293 | -7/Data Miner | Entered Proximity Caves 6474 | -6/Proximity Caves | Escorted by Enhanced Grunt 6474 | -6/Proximity Caves | Reached level 17 6576 | -6/Proximity Caves | Discovered exit to Factory (range 20) 6628 | -6/Proximity Caves | Learned 4 Factory zone layouts 6650 | -6/Proximity Caves | Learned 8 Factory zone layouts 6714 | -6/Proximity Caves | Spotted 17-MYW(f) 6714 | -6/Proximity Caves | Spotted RU-KZQ(f) 6716 | -6/Proximity Caves | Encountered a Master Thief 6716 | -6/Proximity Caves | Encountered a Master Thief 6717 | -6/Proximity Caves | Arm. Huge Wheel stolen by Master Thief 6722 | -6/Proximity Caves | Cld. Deuterium Engine stolen by Master Thief 6724 | -6/Proximity Caves | Allies destroyed 17-MYW(f) 6817 | -6/Proximity Caves | Spotted CT-OYH(f) 6817 | -6/Proximity Caves | Allies destroyed CT-OYH(f) 6861 | -6/Proximity Caves | Entered Factory 6862 | -6/Factory | Identified exit to Factory 6863 | -6/Factory | Identified exit to Lower Caves 6864 | -6/Factory | Loaded intel: 215 non-interactive machine locations 6879 | -6/Factory | Upgraded with Propulsion slot (x1) 6879 | -6/Factory | Upgraded with Utility slot (x1) 6946 | -6/Factory | Incoming investigation squad redirected 7126 | -6/Factory | Reached level 18 7127 | -6/Factory | Found Prototype Processor 7127 | -6/Factory | Identified Exp. Signal Interpreter 7158 | -6/Factory | Found Exp. Signal Interpreter 7220 | -6/Factory | Upgraded with Propulsion slot (x1) 7343 | -6/Factory | Entered Lower Caves 7487 | -6/Lower Caves | Spotted XW-EFK(f) 7488 | -6/Lower Caves | Spotted JX-P55(f) 7489 | -6/Lower Caves | Encountered a Master Thief 7489 | -6/Lower Caves | Encountered a Master Thief 7490 | -6/Lower Caves | Destroyed XW-EFK(f) 7504 | -6/Lower Caves | Lgt. Fission Core stolen by Master Thief 7506 | -6/Lower Caves | Destroyed JX-P55(f) 7535 | -6/Lower Caves | Learned location of Extension (-5) 7641 | -6/Lower Caves | Spotted AS-HG7(f) 7642 | -6/Lower Caves | Encountered a Master Thief 7644 | -6/Lower Caves | Lgt. Fission Core stolen by Master Thief 7646 | -6/Lower Caves | Destroyed AS-HG7(f) 7793 | -6/Lower Caves | Core integrity fell below 50% 7919 | -6/Lower Caves | Spotted 3H-FYG(f) 7920 | -6/Lower Caves | Encountered a Master Thief 7922 | -6/Lower Caves | Force Field stolen by Master Thief 7940 | -6/Lower Caves | Build established: Scavenger-Skirmisher 7940 | -6/Lower Caves | Discovered new exit (range 20) 7944 | -6/Lower Caves | Spotted UH-CT6(f) 7945 | -6/Lower Caves | Encountered a Master Thief 7954 | -6/Lower Caves | Destroyed UH-CT6(f) 7998 | -6/Lower Caves | Identified exit to Lower Caves 8000 | -6/Lower Caves | Entered another Lower Caves area 8201 | -6/Lower Caves | Spotted TJ-JI0(f) 8202 | -6/Lower Caves | Encountered a Master Thief 8202 | -6/Lower Caves | Spotted KJ-TRO(f) 8203 | -6/Lower Caves | Encountered a Master Thief 8208 | -6/Lower Caves | Lgt. Fission Core stolen by Master Thief 8208 | -6/Lower Caves | Adv. Terrain Scanner stolen by Master Thief 8313 | -6/Lower Caves | Discovered new exit (range 35) 8383 | -6/Lower Caves | Attracted the attention of an 0b10 base 8394 | -6/Lower Caves | Reached level 19 8452 | -6/Lower Caves | Entered Zion 8516 | -6/Zion | Visited the Megawrench Repair Shop 8529 | -6/Zion | Megawrench repaired 15 parts 8648 | -6/Zion | Learned 8 Factory zone layouts 8684 | -6/Zion | Build established: Scavenger-Mutant 8726 | -6/Zion | Found Prototype Launcher 8726 | -6/Zion | Identified Gui. Missile Launcher 8898 | -6/Zion | Learned 8 Factory zone layouts 9810 | -6/Zion | Discovered new exit (range 15) 9834 | -6/Zion | Entered Proximity Caves 9839 | -5/Proximity Caves | Build established: Scavenger-Gunner 9893 | -5/Proximity Caves | Reached level 20 10035 | -5/Proximity Caves | Spotted JH-0KQ(f) 10036 | -5/Proximity Caves | Encountered a Master Thief 10037 | -5/Proximity Caves | Spotted 4K-KJ1(f) 10038 | -5/Proximity Caves | Encountered a Master Thief 10040 | -5/Proximity Caves | Mic. Fission Core stolen by Master Thief 10046 | -5/Proximity Caves | Destroyed JH-0KQ(f) 10125 | -5/Proximity Caves | Learned Factory stockpile data 10181 | -5/Proximity Caves | Build established: Scavenger-Mutant 10346 | -5/Proximity Caves | Learned Factory emergency access door positions 10418 | -5/Proximity Caves | Discovered exit to Factory (range 8) 10429 | -5/Proximity Caves | Entered Factory 10430 | -5/Factory | Identified exit to Extension 10431 | -5/Factory | Reached level 21 10931 | -5/Factory | Fabricated Exp. Targeting Computer (x1) 11010 | -5/Factory | Build established: Scavenger-Gunner 11119 | -5/Factory | Spotted B-75 Beast 11133 | -5/Factory | Destroyed B-75 Beast 11491 | -5/Factory | Reached level 22 11775 | -5/Factory | Discovered new exit (range 13) 11844 | -5/Factory | Build established: Scavenger-Mutant 11929 | -5/Factory | First assault squad dispatched 11956 | -5/Factory | Incoming assault squad redirected 12132 | -5/Factory | Incoming investigation squad redirected 12181 | -5/Factory | Incoming assault squad redirected 12196 | -5/Factory | System corruption reached 10% 12259 | -5/Factory | Incoming assault squad redirected 12457 | -5/Factory | Entered Extension 12459 | -5/Extension | Reached level 23 12470 | -5/Extension | Upgraded with Utility slot (x1) 12513 | -5/Extension | Rescued a captive Derelict 12645 | -5/Extension | Rescued a captive Derelict 12716 | -5/Extension | Rescued A7 12878 | -5/Extension | Rescued a captive Derelict 12886 | -5/Extension | Rescued a captive Derelict 12914 | -5/Extension | Rescued a captive Derelict 12915 | -5/Extension | Rescued a captive Derelict 12951 | -5/Extension | Rescued a captive Derelict 12953 | -5/Extension | Spotted B-75 Beast 12963 | -5/Extension | Spotted B-75 Beast 12974 | -5/Extension | Allies destroyed B-75 Beast 12979 | -5/Extension | Allies destroyed B-75 Beast 13057 | -5/Extension | First assault squad dispatched 13082 | -5/Extension | Incoming assault squad redirected 13332 | -5/Extension | Disrupted transfer network 13367 | -5/Extension | Reached level 24 13387 | -5/Extension | Discovered new exit (range 16) 13389 | -5/Extension | Discovered new exit (range 16) 13401 | -5/Extension | Destroyed 10 combat bots 13426 | -5/Extension | Identified exit to Cetus 13512 | -5/Extension | Entered Cetus 13512 | -5/Cetus | Accompanied by 7 allies 13517 | -5/Cetus | Acquired a Cetus Manufacturing Module code from A7 13536 | -5/Cetus | Spotted Cetus Guard 13537 | -5/Cetus | Spotted Cetus Guard 13538 | -5/Cetus | Spotted Cetus Guard 13543 | -5/Cetus | Spotted Cetus Guard 13545 | -5/Cetus | Allies destroyed Cetus Guard 13546 | -5/Cetus | Destroyed Cetus Guard 13547 | -5/Cetus | Allies destroyed Cetus Guard 13550 | -5/Cetus | Allies destroyed Cetus Guard 13671 | -5/Cetus | Incoming investigation squad redirected 13701 | -5/Cetus | Started Cetus Manufacturing Module 13726 | -5/Cetus | Manufactured an Enhanced Grunt 13751 | -5/Cetus | Manufactured an Enhanced Grunt 13776 | -5/Cetus | Manufactured an Enhanced Grunt 13801 | -5/Cetus | Manufactured an Enhanced Grunt 13826 | -5/Cetus | Manufactured an Enhanced Grunt 13866 | -5/Cetus | Discovered new exit (range 16) 13987 | -5/Cetus | Discovered new exit (range 16) 14028 | -5/Cetus | Spotted Cetus Guard 14028 | -5/Cetus | Spotted Cetus Guard 14031 | -5/Cetus | Spotted Cetus Guard 14032 | -5/Cetus | Spotted Cetus Guard 14034 | -5/Cetus | Allies destroyed Cetus Guard 14042 | -5/Cetus | Allies destroyed Cetus Guard 14042 | -5/Cetus | Allies destroyed Cetus Guard 14051 | -5/Cetus | Destroyed Cetus Guard 14051 | -5/Cetus | Reached level 25 14057 | -5/Cetus | Discovered new exit (range 16) 14072 | -5/Cetus | Met Revision 17 14214 | -5/Cetus | Identified exit to Factory 14227 | -5/Cetus | Entered Factory 14227 | -4/Factory | Accompanied by 4 allies 14301 | -4/Factory | Build established: Scavenger-Gunner 14504 | -4/Factory | First assault squad dispatched 14525 | -4/Factory | Incoming assault squad redirected 14662 | -4/Factory | Destroyed 9 combat bots 14753 | -4/Factory | Incoming assault squad redirected 14789 | -4/Factory | Reached level 26 14885 | -4/Factory | High security lockdown imminent 14900 | -4/Factory | Found Prototype Processor 14900 | -4/Factory | Identified Exp. Melee Analysis Suite 14901 | -4/Factory | System corruption reached 10% 14959 | -4/Factory | Spotted B-86 Titan 14964 | -4/Factory | Destroyed B-86 Titan 14965 | -4/Factory | High security lockdown engaged 14985 | -4/Factory | Destroyed 9 combat bots 15006 | -4/Factory | Core integrity fell below 50% 15025 | -4/Factory | Spotted B-86 Titan 15060 | -4/Factory | Core integrity fell below 20% 15064 | -4/Factory | Destroyed B-86 Titan 15067 | -4/Factory | Destroyed by L-61 Swordsman with Power Sword Last Messages --------------- 15057_ B-86 Titan suffers critical hit. 15058_ Imp. KE Penetrator blown off. 15058_ Quantum Reactor blown off. 15058_ Centrium Medium Armor Plating blown off. 15058_ E-15 Imp destroyed. 15061_ Slug penetrates B-86 Titan. 15061_ System corrupted: KE Penetrator targeting data glitched. 15064_ System corrupted: Imp. KE Penetrator targeting data glitched. 15064_ Slug penetrates B-86 Titan. 15064_ B-86 Titan suffers critical hit. 15064_ B-86 Titan destroyed. 15064_ Switching to secondary target: B-60 Warrior. 15064_ System corrupted: KE Penetrator targeting data glitched. 15064_ Slug penetrates B-60 Warrior. 15064_ B-60 Warrior suffers critical hit. 15064_ Destroyed Imp. Treads. 15067_ Slug penetrates B-60 Warrior. 15067_ Nuclear Reactor explodes. 15067_ Subcomponent Replicator disabled. 15067_ Fabricator disabled. Map ----- +----------------------------------------------------+ | ?????????????????????????????????????????????????? | | ?????????????????????????????????????????????????? | | ?????????????????????????????????????????????????? | | ?????????????????????????????????????????????????? | | ?????????????????????????????????????????????????? | | ?????????????????????????????????????????????????? | | ?????????????????????????????????????????????????? | | ?????????????????????????????????????????????????? | | ?????????????????????????????????????????????????? | | ?????????????????????????????????????????????????? | | ?????????????????????????????????????????????????? | | ???????????????????????????????##????????????????? | | ?????????????????????????#???? ??????????????? | | ????????????????????????#;#### ????????????? | | ???????????????????????? """ ???????????? | | ???????????????????????? "F ???????????? | | ??????????????????????? ??????????? | | ???????????????????????? ??????????? | | ???????????????????????? ?????????? | | ???????????????????????? ??????????? | | ???????????????????????? "???????????? | | ?????????????????????##?#%] " "???????????? | | ?????????????????????#;##!! """"" #???????? | | ??????????????????????#%=!!!! #???????? | | ??????????????????????#=!bb!! """ #???????? | | ???????????????????????#*@l """"" +???????? | | ???????????????????????## b """"" #???????? | | ????????????????????????#!] #???????? | | ????????????????????###?#!] """ """ ????????? | | ????????????????????# #]] " "" """"" #???????? | | ????????????????????# ;==*"" " """"" #???????? | | ?????????????????# ### !%[=[ #???????? | | ???????????????????# !%%% #???????? | | ???????????????????#### %!=! ##### #???????? | | ??????????????????????##[*! ##+##+#???????? | | ???????????????????????# / #???????? | | ??????????????????????## ! ! #???????? | | ??????????????????????# [ #???????? | | ??????????????????????# /#???????? | | ??????????????????????## #???????? | | ???????????????????????# # #####???????? | | ???????????????????????## ] #???????? | | ???????????????????????# !%! #???????? | | ???????????????????????## ^ ! ! * #???????? | | ????????????????????????# ! +???????? | | ????????????????????????# ! #???????? | | ????????????????????????# #???????? | | ????????????????????????# ! #???????? | | ????????????????????????##%* # +###+#???????? | | ?????????????????????????#= #???????? | +----------------------------------------------------+ Best States ------------- Heat Dissipation 103 Energy Generation 60 Energy Capacity 950 Matter Stores 450 Matter Capacity 450 Sight Range 17 Robot Scan Range 22 Terrain Scan Range 20 Terrain Scan Density 410 Cloak Strength 5 Additional Mass Support 12 Armor Coverage 825 Resistance: KI 20 Resistance: TH 20 Propulsion Shielding 66 Weapon Cycling 20 Evasion (%) 44 Targeting Accuracy 20 Launcher Accuracy 20 Armor Integrity Analysis 50 Recoil Reduction 4 Particle Charging 20 Kinecelleration 40 Item Schematics ----------------- Combat Drone Bay | -7/Data Miner | Free Lgt. Regenerative Plating | -7/Data Miner | Free Exp. Cesium-ion Thruster | -7/Data Miner | Free Exp. Sensor Array | -7/Data Miner | Free Exp. Targeting Computer | -7/Data Miner | Free Tactical Coordination Suite | -7/Data Miner | Free Mni. Smartbomb Launcher | -7/Data Miner | Free Hvy. Riot Gun | -6/Zion | Free Battle Cannon | -6/Zion | Free Bore Cannon | -6/Zion | Free Ripper | -6/Zion | Free Robot Schematics ------------------ S-27 Virus | -7/Data Miner | Free G-50 Soldier | -7/Data Miner | Free X-72 Disruptor | -7/Data Miner | Free I-36 Angel | -7/Data Miner | Free I-47 Archangel | -7/Data Miner | Free Fabricated ------------ Exp. Targeting Computer | x1 | -5/Factory Alien Tech Used ----------------- None Achievements -------------- None Challenges ------------ None RPGLIKE | -11 -10 -10 -9 -9 -9 -8 -8 -7 -7 -7 -7 -6 -6 -6 -6 -6 -5 -5 -5 -5 -4 --------- Run | Scr Mat Min Mat Min Exi Min Mat Fac Low Low Dat Pro Fac Low Low Zio Pro Fac Ext Cet Fac Levels Raised 25 | . 2 1 5 . . 1 2 3 . 1 . 1 1 . 1 . 1 2 2 1 1 XP Earned 41280 | 3000 3784 1936 6447 280 169 1725 2776 4261 789 364 220 1498 1329 676 772 220 1868 3712 2335 869 2250 XP Spent 38800 | 2920 3035 1470 4510 2975 . 1545 2955 3025 . . . . 5615 . . 1460 1940 . 6025 . 1325 Upgrades 93 | 9 12 3 12 8 . 4 6 7 . . . . 10 . . 3 4 . 13 . 2 Power Slot 1 | . . 1 . . . . . . . . . . . . . . . . . . . Propulsion Slot 3 | 1 . . . . . . . . . . . . 2 . . . . . . . . Utility Slot 7 | 1 1 . 2 1 . . . . . . . . 1 . . . . . 1 . . Weapon Slot 2 | 1 . 1 . . . . . . . . . . . . . . . . . . . Core Integrity 21 | . 5 . 2 5 . 1 1 5 . . . . . . . . 2 . . . . Heat Dissipation 13 | . 3 . 5 . . . . . . . . . 3 . . 2 . . . . . Energy Generation 3 | . . . . . . 1 1 . . . . . 1 . . . . . . . . Energy Storage 7 | . . . . . . . . . . . . . . . . . . . 7 . . Matter Storage 2 | . . . . . . . . . . . . . . . . . . . 1 . 1 Inventory Capacity 4 | 2 . . . . . . 1 1 . . . . . . . . . . . . . Sight Range 1 | . . . . . . . . . . . . . . . . . . . 1 . . Sensor Range 3 | . . . . . . . . . . . . . 3 . . . . . . . . Terrain Scan Density 4 | 3 . 1 . . . . . . . . . . . . . . . . . . . Ranged Accuracy 6 | 1 3 . 1 . . . . . . . . . . . . 1 . . . . . KI Resistance % 4 | . . . 1 1 . 1 . . . . . . . . . . 1 . . . . TH Resistance % 4 | . . . 1 1 . 1 . . . . . . . . . . 1 . . . . KI Damage % 4 | . . . . . . . . . . . . . . . . . . . 3 . 1 TH Damage % 4 | . . . . . . . 3 1 . . . . . . . . . . . . . Protomatter Created 3177 | . 109 30 602 . . 94 200 87 91 42 . 16 43 133 49 . 72 664 219 217 509 Integrity Restored 6916 | . 327 90 1243 . . 134 184 267 243 126 . 48 129 399 54 . 216 1755 752 302 647 Core 6071 | . 327 90 1106 . . 100 144 200 243 126 . 48 129 399 54 . 216 1755 313 174 647 Parts 845 | . . . 137 . . 34 40 67 . . . . . . . . . . 439 128 . Protomatter Decayed 1397 | . . . 165 . . 46 114 76 . . . . . . 26 . . 59 273 345 293 Game ------ Seed FlightDeepFlakker Manual? 0 Play Time 02:07:59 Cumulative 1034.6 hours Start 2020.04.27 @ 23:10:12 End 2020.04.28 @ 11:52:44 Sessions 5 Manual Loads 0 Difficulty Rogue Special Mode Winter2019/RPGLIKE Game No. 624 Rogue 624 Adventurer 0 Explorer 0 Win Type - Total 18 Types 10/1/4/3/0/0/0 Lore% 89 Gallery% 94 Achievement% 80 Wizard Run 0 Options --------- ASCII 0 Keyboard 0 Movement Mouse Keybinds 0 Fullscreen 2 Font 24/Crisp Map View 76x50 Tactical HUD 1 Map Filters NONE Filters NONE Steam 1 RUN: c0472483-b4b8-4ac5-9466-a8328afef6d7